fUSD/lending_fUSD_20251119
["ID","MTS","AMOUNT","RATE_DAILY","PERIOD"]
[394402470,1763533833208,-500.0,0.00036986,15]
[394402472,1763533833217,-500.0,0.00036986,15]
[394402474,1763533833227,-500.0,0.00036986,15]
[394402476,1763533833237,-500.0,0.00036986,15]
[394402478,1763533833247,-500.0,0.00036986,15]
[394402480,1763533833256,-500.0,0.00036986,15]
[394402482,1763533833266,-500.0,0.00036986,15]
[394402485,1763533833276,-500.0,0.00036986,15]
[394402487,1763533833286,-500.0,0.00036986,15]
[394402489,1763533833296,-163.7536606,0.00036986,15]
[394402491,1763533833306,-502.57764204,0.00037,5]
[394402493,1763533833316,-503.88449546,0.00037,5]
[394402495,1763533833326,-200.0,0.00037,5]
[394402497,1763533833335,-506.02329808,0.00037,5]
[394402499,1763533833348,-152.0,0.00037122,3]
[394402501,1763533833358,-208.52167,0.00037345,30]
[394402503,1763533833368,-238.37,0.00037451,60]
[394402505,1763533833376,-228.65,0.00037466,2]
[394402507,1763533833386,-208.52167,0.00037545,30]
[394402509,1763533833395,-307.20550531,0.00037573,2]
[394402511,1763533833405,-150.0,0.00037627,7]
[394402513,1763533833415,-150.00000001,0.00037627,7]
[394402515,1763533833424,-152.4408517,0.00037627,7]
[394402517,1763533833434,-405.29007824,0.00037685,5]
[394402519,1763533833444,-208.52167,0.00037745,30]
[394402520,1763533833453,-208.52167,0.00037945,30]
[394402523,1763533833463,-208.52167,0.00038145,30]
[394402525,1763533833472,-243.0,0.00038192,7]
[394402526,1763533833481,-208.52167,0.00038345,30]
[394402529,1763533833490,-1000.0,0.00038392,2]
[394402530,1763533833502,-243.0,0.00038416,2]
[394402532,1763533833512,-479.42350612,0.00038419,2]
[394402534,1763533833521,-2347.98333212,0.00038438,31]
[394402536,1763533833531,-243.0,0.00038447,2]
[394402538,1763533833548,-228.65,0.00038479,2]
[394402540,1763533833557,-208.52167,0.00038545,30]
[394402542,1763533833566,-243.0,0.00038558,7]
[394402544,1763533833576,-1179.97,0.00038691,2]
[394402546,1763533833587,-208.52167,0.00038745,30]
[394402548,1763533833597,-600.0,0.000388,14]
[394402550,1763533833607,-1200.0,0.000389,14]
[394402552,1763533833616,-855.99954265,0.000389,2]
[394402554,1763533833625,-208.52167,0.00038945,30]
[394402556,1763533833635,-307.20550531,0.00038958,2]
[394402558,1763533833644,-210.02732058,0.00039007,15]
[394402560,1763533833653,-554.34799217,0.00039007,15]
[394402562,1763533833663,-311.61697355,0.00039007,15]
[394402564,1763533833673,-237.57771093,0.00039007,15]
[394402566,1763533833682,-23428.6974,0.00039008,2]
[394402568,1763533833691,-1000.0,0.00039008,2]
[394402570,1763533833700,-243.0,0.00039023,7]
[394402572,1763533833709,-243.0,0.0003906,2]
[394402574,1763533833718,-208.52167,0.00039145,30]
[394402576,1763533833727,-503.6961268,0.00039173,2]
[394402578,1763533833739,-500.0,0.00039173,5]
[394402580,1763533833748,-500.0,0.00039173,5]
[394402582,1763533833757,-9822.12866191,0.00039192,2]
[394402584,1763533833767,-6512.28378479,0.00039202,2]
[394402586,1763533833777,-3674.00105714,0.00039202,2]
[394402588,1763533833786,-163.21651053,0.0003927,2]
[394402590,1763533833795,-171.11283546,0.00039273,5]
[394402592,1763533833804,-500.0,0.00039273,5]
[394402594,1763533833814,-502.92812101,0.00039273,5]
[394402596,1763533833823,-500.0,0.00039273,5]
[394402598,1763533833832,-501.38602614,0.00039273,5]
[394402600,1763533833842,-243.90280291,0.00039273,5]
[394402602,1763533833852,-500.0,0.00039273,5]
[394402604,1763533833861,-504.16500117,0.00039273,5]
[394402606,1763533833871,-504.52146008,0.00039273,5]
[394402608,1763533833881,-500.0,0.00039273,5]
[394402610,1763533833890,-504.4631036,0.00039273,5]
[394402612,1763533833900,-11379.69434319,0.00039283,4]
[394402615,1763533833913,-8788.81481749,0.00039283,4]
[394402617,1763533833924,-2354.96308394,0.00039283,4]
[394402619,1763533833935,-685.73001,0.00039283,4]
[394402621,1763533833945,-3124.78462949,0.00039283,4]
[394402623,1763533833957,-2177.589894,0.00039283,4]
[394402625,1763533833969,-1001.94209764,0.00039283,4]
[394402627,1763533833980,-344.81,0.00039283,4]
[394402630,1763533833991,-67838.94606039,0.00039283,4]
[394402632,1763533834002,-936.56503582,0.00039283,4]
[394402985,1763533837508,-971.55999998,0.00039283,4]
[394402987,1763533837521,-328.80807374,0.00039283,4]
[394402990,1763533837532,-863.27809045,0.00039283,4]
[394402995,1763533837570,-1026.40959668,0.00039283,4]
[394402997,1763533837585,-1443.45977058,0.00039283,4]
[394402999,1763533837596,-23411.51818861,0.00039283,4]
[394403001,1763533837605,-1109.75,0.00039289,30]
[394403003,1763533837615,-30945.20934878,0.0003929,2]
[394403005,1763533837625,-1109.0,0.00039291,5]
[394403008,1763533837635,-500.0,0.00039292,2]
[394403010,1763533837644,-500.0,0.00039292,2]
[394403012,1763533837653,-500.0,0.00039292,2]
[394403014,1763533837662,-500.0,0.00039292,2]
[394403016,1763533837672,-147792.019308,0.00039292,4]
[394403018,1763533837681,-169531.089614,0.00039292,4]
[394403020,1763533837690,-150.45,0.00039292,2]
[394403022,1763533837699,-150.45,0.00039292,2]
[394403024,1763533837708,-150.45,0.00039292,2]
[394403026,1763533837717,-150.45,0.00039292,2]
[394403028,1763533837727,-1020.67808812,0.00039292,2]
[394403030,1763533837735,-500.0,0.00039302,2]
[394403032,1763533837744,-500.0,0.00039302,2]
[394403034,1763533837754,-500.0,0.00039302,2]
[394403036,1763533837763,-500.0,0.00039302,2]
[394403038,1763533837773,-500.0,0.00039302,2]
[394403040,1763533837782,-500.0,0.00039302,2]
[394403042,1763533837791,-760000.0,0.00039302,2]
[394403044,1763533837800,-208.52167,0.00039345,30]
[394403045,1763533837809,-1036.0,0.0003937,7]
[394403063,1763533837962,-162.34224779,0.00039373,5]
[394403065,1763533837973,-507.22484298,0.00039373,5]
[394403067,1763533837982,-501.20914453,0.00039373,5]
[394403069,1763533837991,-566.88496045,0.00039373,5]
[394403071,1763533838000,-487.93732962,0.00039373,5]
[394403073,1763533838009,-500.0,0.00039373,5]
[394403075,1763533838019,-9822.12866182,0.00039474,2]
[394403077,1763533838028,-6512.28378475,0.00039483,2]
[394403079,1763533838038,-208.52167,0.00039545,30]
[394403081,1763533838047,-1109.75,0.00039563,30]
[394403083,1763533838057,-238.37,0.00039711,60]
[394403085,1763533838066,-421.53241707,0.00039721,5]
[394403087,1763533838076,-208.52167,0.00039745,30]
[394403089,1763533838086,-9822.12866182,0.00039756,2]
[394403091,1763533838095,-6512.28378475,0.00039763,2]
[394403093,1763533838104,-163.21651053,0.00039765,2]
[394403095,1763533838114,-2693.75835119,0.00039786,34]
[394403097,1763533838124,-554.34903976,0.00039821,5]
[394403099,1763533838134,-504.62978813,0.00039821,5]
[394403101,1763533838146,-1109.75,0.00039837,30]
[394403103,1763533838156,-782.78,0.00039914,120]
[394403105,1763533838165,-1000.0,0.00039921,5]
[394403107,1763533838175,-208.52167,0.00039945,30]
[394403109,1763533838185,-150.45,0.0003997,2]
[394403112,1763533838195,-254.3988211,0.00039973,5]
[394403113,1763533838205,-150.0,0.00039973,5]
[394403116,1763533838215,-30562.93737519,0.0003998,2]
[394403117,1763533838224,-230.46,0.00039985,30]
[394403119,1763533838234,-398.57063525,0.0004,14]
[394403121,1763533838243,-9822.12866182,0.00040037,15]
[394403123,1763533838253,-6512.28378475,0.00040044,15]
[394403125,1763533838263,-171.26,0.00040049,14]
[394403127,1763533838273,-1109.75,0.00040111,30]
[394403129,1763533838282,-208.52167,0.00040145,30]
[394403131,1763533838292,-500.0,0.00040151,2]
[394403133,1763533838302,-322.72,0.00040161,2]
[394403135,1763533838311,-162.91919545,0.00040192,30]
[394403137,1763533838321,-1000.0,0.000402,7]
[394403139,1763533838332,-163.21651053,0.0004026,2]
[394403141,1763533838341,-9999.99,0.0004029,2]
[394403143,1763533838351,-9822.12866182,0.00040319,15]
[394403145,1763533838361,-6512.28378475,0.00040325,15]
[394403147,1763533838371,-307.20550531,0.00040343,28]
[394403149,1763533838380,-1000.0,0.00040357,7]
[394403151,1763533838389,-1109.75,0.00040385,30]
[394403153,1763533838399,-152.0,0.00040392,4]
[394403155,1763533838408,-567.21962,0.00040468,5]
[394403157,1763533838417,-4914.0,0.00040481,2]
[394403159,1763533838426,-1479.28496145,0.00040492,2]
[394403161,1763533838436,-2029.1,0.000405,2]
[394403163,1763533838446,-1999.97,0.000405,2]
[394403165,1763533838455,-1999.97,0.000405,2]
[394403167,1763533838465,-1999.97,0.000405,2]
[394403169,1763533838476,-1999.97,0.000405,2]
[394403172,1763533838485,-205.21852195,0.00040521,5]
[394403174,1763533838495,-849.27622277,0.0004053,120]
[394403176,1763533838506,-208.52167,0.00040545,30]
[394403177,1763533838518,-1036.0,0.00040545,120]
[394403179,1763533838527,-1032.9572006,0.00040572,2]
[394403181,1763533838537,-9822.12866182,0.00040601,15]
[394403183,1763533838548,-6512.28378475,0.00040605,15]
[394403185,1763533838557,-162.91919545,0.0004063,30]
[394403188,1763533838567,-162.91919544,0.0004063,30]
[394403190,1763533838576,-1109.75,0.00040659,30]
[394403192,1763533838587,-1000.0,0.00040688,7]
[394403194,1763533838597,-208.52167,0.00040745,30]
[394403195,1763533838607,-163.21651053,0.00040755,2]
[394403198,1763533838616,-1479.28496145,0.00040764,2]
[394403200,1763533838626,-789.0,0.00040781,120]
[394403202,1763533838638,-153.0,0.00040781,120]
[394403204,1763533838648,-153.0,0.00040781,120]
[394403206,1763533838660,-153.0,0.00040781,120]
[394403208,1763533838670,-153.0,0.00040781,120]
[394403210,1763533838680,-153.0,0.00040781,120]
[394403212,1763533838690,-153.0,0.00040781,120]
[394403214,1763533838699,-153.0,0.00040781,120]
[394403216,1763533838709,-153.0,0.00040781,120]
[394403218,1763533838718,-153.0,0.00040781,120]
[394403220,1763533838727,-263.0,0.00040781,120]
[394403222,1763533838736,-263.0,0.00040781,120]
[394403224,1763533838746,-263.0,0.00040781,120]
[394403226,1763533838756,-263.0,0.00040781,120]
[394403228,1763533838765,-263.0,0.00040781,120]
[394403230,1763533838774,-263.0,0.00040781,120]
[394403232,1763533838784,-263.0,0.00040781,120]
[394403234,1763533838793,-153.0,0.00040781,120]
[394403236,1763533838803,-153.0,0.00040781,120]
[394403238,1763533838812,-153.0,0.00040781,120]
[394403240,1763533838821,-153.0,0.00040781,120]
[394403242,1763533838831,-153.0,0.00040781,120]
[394403244,1763533838842,-153.0,0.00040781,120]
[394403246,1763533838851,-153.0,0.00040781,120]
[394403248,1763533838860,-153.0,0.00040781,120]
[394403250,1763533838870,-153.0,0.00040781,120]
[394403252,1763533838879,-153.0,0.00040782,120]
[394403254,1763533838889,-153.0,0.00040782,120]
[394403256,1763533838898,-153.0,0.00040782,120]
[394403258,1763533838907,-153.0,0.00040782,120]
[394403260,1763533838916,-153.0,0.00040782,120]
[394403262,1763533838925,-153.0,0.00040782,120]
[394403264,1763533838935,-153.0,0.00040782,120]
[394403265,1763533838943,-153.0,0.00040782,120]
[394403267,1763533838953,-153.0,0.00040782,120]
[394403270,1763533838963,-153.0,0.00040782,120]
[394403271,1763533838972,-153.0,0.00040782,120]
[394403273,1763533838981,-153.0,0.00040782,120]
[394403275,1763533838991,-153.0,0.00040782,120]
[394403277,1763533839001,-153.0,0.00040782,120]
[394403279,1763533839010,-153.0,0.00040782,120]
[394403281,1763533839019,-153.0,0.00040782,120]
[394403283,1763533839029,-153.0,0.00040782,120]
[394403285,1763533839038,-153.0,0.00040782,120]
[394403287,1763533839048,-153.0,0.00040782,120]
[394403289,1763533839057,-153.0,0.00040782,120]
[394403291,1763533839067,-2000.0,0.00040827,120]
[394403293,1763533839079,-171.26,0.00040829,14]
[394403295,1763533839089,-218.0,0.00040829,120]
[394403297,1763533839099,-218.0,0.00040829,120]
[394403299,1763533839110,-218.0,0.00040829,120]
[394403301,1763533839120,-218.0,0.00040829,120]
[394403303,1763533839129,-218.0,0.00040829,120]
[394403305,1763533839139,-218.0,0.00040829,120]
[394403307,1763533839148,-218.0,0.00040829,120]
[394403309,1763533839158,-218.0,0.00040829,120]
[394403311,1763533839168,-218.0,0.00040829,120]
[394403313,1763533839177,-218.0,0.00040829,120]
[394403315,1763533839187,-218.0,0.00040829,120]
[394403317,1763533839197,-218.0,0.00040829,120]
[394403319,1763533839207,-218.0,0.00040829,120]
[394403321,1763533839216,-218.0,0.00040829,120]
[394403323,1763533839225,-218.0,0.00040829,120]
[394403325,1763533839235,-218.0,0.00040829,120]
[394403327,1763533839245,-548.0,0.0004083,120]
[394403329,1763533839255,-548.0,0.0004083,120]
[394403331,1763533839265,-548.0,0.0004083,120]
[394403333,1763533839275,-548.0,0.0004083,120]
[394403335,1763533839284,-548.0,0.0004083,120]
[394403336,1763533839293,-548.0,0.0004083,120]
[394403338,1763533839303,-153.0,0.0004083,120]
[394403340,1763533839313,-153.0,0.0004083,120]
[394403342,1763533839322,-153.0,0.0004083,120]
[394403344,1763533839332,-153.0,0.0004083,120]
[394403346,1763533839342,-153.0,0.0004083,120]
[394403348,1763533839352,-153.0,0.0004083,120]
[394403350,1763533839361,-153.0,0.0004083,120]
[394403352,1763533839370,-153.0,0.0004083,120]
[394403354,1763533839379,-153.0,0.0004083,120]
[394403356,1763533839388,-153.0,0.0004083,120]
[394403358,1763533839398,-153.0,0.0004083,120]
[394403360,1763533839407,-153.0,0.0004083,120]
[394403362,1763533839416,-153.0,0.0004083,120]
[394403364,1763533839425,-153.0,0.0004083,120]
[394403366,1763533839435,-153.0,0.0004083,120]
[394403368,1763533839444,-153.0,0.0004083,120]
[394403370,1763533839453,-153.0,0.0004083,120]
[394403372,1763533839462,-153.0,0.0004083,120]
[394403374,1763533839471,-153.0,0.0004083,120]
[394403375,1763533839480,-153.0,0.0004083,120]
[394403376,1763533839489,-211.13759935,0.00040833,2]
[394403377,1763533839499,-300.0,0.00040846,2]
[394403378,1763533839513,-150.45,0.00040876,2]
[394403379,1763533839522,-719.03,0.00040877,2]
[394403380,1763533839532,-490.54,0.00040877,2]
[394403381,1763533839541,-159.93,0.0004088,14]
[394403382,1763533839553,-9822.12866182,0.00040883,15]
[394403384,1763533839563,-6512.28378475,0.00040886,15]
[394403385,1763533839572,-150.0,0.00040891,7]
[394403386,1763533839581,-1800.0,0.000409,14]
[394403387,1763533839591,-1109.75,0.00040933,30]
[394403388,1763533839601,-208.52167,0.00040945,30]
[394403389,1763533839610,-881.39224307,0.00040967,120]
[394403391,1763533839619,-300.0,0.00040976,2]
[394403393,1763533839629,-1479.28496145,0.00040985,2]
[394403395,1763533839638,-151.0,0.00041,90]
[394403397,1763533839647,-1856.0,0.00041,7]
[394403399,1763533839656,-300.0,0.00041011,2]
[394403401,1763533839666,-169.55,0.00041014,2]
[394403403,1763533839675,-550.51,0.00041014,2]
[394403405,1763533839684,-150.0,0.00041014,2]
[394403407,1763533839693,-150.0,0.00041014,2]
[394403409,1763533839702,-177.45,0.00041014,2]
[394403411,1763533839711,-1209.94,0.00041014,2]
[394403413,1763533839720,-151.24,0.00041014,2]
[394403415,1763533839729,-416.99,0.00041014,2]
[394403417,1763533839738,-328.33,0.00041014,2]
[394403419,1763533839746,-156.15,0.00041014,2]
[394403421,1763533839755,-8576.17020993,0.00041014,2]
[394403423,1763533839764,-159.92,0.00041048,14]
[394403425,1763533839773,-150.0,0.00041058,7]
[394403427,1763533839782,-162.91919545,0.00041068,30]
[394403429,1763533839791,-501.94375083,0.00041073,5]
[394403431,1763533839804,-1000.0,0.00041094,7]
[394403433,1763533839814,-3445.29,0.00041095,2]
[394403435,1763533839823,-500.0,0.00041095,2]
[394403437,1763533839835,-300.0,0.00041095,2]
[394403439,1763533839844,-500.0,0.00041095,2]
[394403441,1763533839853,-5888.0,0.00041098,120]
[394403443,1763533839862,-593.89617414,0.000411,2]
[394403445,1763533839872,-849.27622275,0.00041129,120]
[394403447,1763533839881,-3047.40724537,0.00041134,37]
[394403449,1763533839890,-208.52167,0.00041145,30]
[394403451,1763533839899,-300.0,0.00041157,2]
[394403453,1763533839908,-9822.12866182,0.00041164,15]
[394403455,1763533839917,-6512.28378475,0.00041167,15]
[394403457,1763533839926,-300.0,0.00041177,2]
[394403459,1763533839936,-300.0,0.00041196,2]
[394403461,1763533839944,-1479.28496145,0.00041197,2]
[394403463,1763533839953,-2400.0,0.000412,15]
[394403465,1763533839962,-1109.75529373,0.00041207,30]
[394403467,1763533839972,-300.0,0.00041222,2]
[394403469,1763533839981,-300.0,0.00041239,2]
[394403471,1763533839990,-163.21651053,0.0004125,2]
[394403473,1763533839999,-300.0,0.00041254,2]
[394403475,1763533840008,-300.0,0.00041261,2]
[394403477,1763533840018,-300.0,0.00041282,2]
[394403479,1763533840027,-500.0,0.00041286,2]
[394403481,1763533840036,-5888.0,0.00041286,7]
[394403483,1763533840046,-3000.0,0.000413,15]
[394403485,1763533840055,-300.0,0.00041303,2]
[394403487,1763533840064,-300.0,0.00041318,2]
[394403489,1763533840073,-208.52167,0.00041345,30]
[394403491,1763533840083,-211.13759935,0.00041345,2]
[394403493,1763533840093,-3445.29,0.00041369,2]
[394403495,1763533840102,-300.0,0.00041369,2]
[394403497,1763533840111,-300.0,0.0004137,2]
[394403499,1763533840120,-158.86102011,0.0004137,30]
[394403501,1763533840130,-150.0,0.0004137,30]
[394403503,1763533840138,-2000.0,0.000414,2]
[394403505,1763533840147,-600.0,0.000414,15]
[394403507,1763533840157,-150.45,0.0004142,2]
[394403509,1763533840166,-302.48585036,0.00041421,106]
[394403511,1763533840175,-300.0,0.00041429,30]
[394403513,1763533840184,-671.84140377,0.00041429,30]
[394403515,1763533840193,-157719.46513873,0.0004143,2]
[394403517,1763533840203,-2455.87396,0.0004143,9]
[394403519,1763533840212,-2455.87397,0.0004143,9]
[394403521,1763533840221,-2455.87397,0.0004143,9]
[394403523,1763533840230,-265.009052,0.0004143,120]
[394403525,1763533840239,-188.231192,0.0004143,120]
[394403527,1763533840248,-188.231192,0.0004143,120]
[394403529,1763533840257,-188.231192,0.0004143,120]
[394403531,1763533840267,-188.231192,0.0004143,120]
[394403533,1763533840275,-162.562247,0.0004143,120]
[394403535,1763533840285,-165.490344,0.0004143,120]
[394403537,1763533840294,-206.455705,0.00041446,30]
[394403539,1763533840303,-206.455705,0.00041446,30]
[394403541,1763533840312,-206.455705,0.00041446,30]
[394403542,1763533840321,-206.455705,0.00041446,30]
[394403544,1763533840331,-151.0,0.00041446,28]
[394403546,1763533840340,-151.0,0.00041446,28]
[394403548,1763533840350,-9822.12866182,0.00041446,15]
[394403550,1763533840359,-151.0,0.00041447,120]
[394403552,1763533840369,-211.736243,0.00041447,120]
[394403554,1763533840378,-151.0,0.00041447,120]
[394403556,1763533840387,-6512.28378475,0.00041447,15]
[394403558,1763533840396,-150.0,0.00041452,14]
[394403560,1763533840405,-300.0,0.00041454,30]
[394403562,1763533840413,-1479.28496148,0.00041454,2]
[394403564,1763533840423,-503.34564414,0.00041473,10]
[394403566,1763533840431,-502.11222657,0.00041473,10]
[394403568,1763533840441,-150.0,0.00041483,14]
[394403570,1763533840450,-300.0,0.00041489,2]
[394403572,1763533840459,-600.0,0.000415,15]
[394403574,1763533840469,-1000.0,0.00041503,14]
[394403576,1763533840478,-162.97952069,0.00041514,7]
[394403578,1763533840488,-300.0,0.00041525,2]
[394403580,1763533840497,-208.52167,0.00041545,30]
[394403582,1763533840511,-1000.0,0.00041547,14]
[394403584,1763533840520,-283.4544093,0.00041555,60]
[394403586,1763533840529,-2455.87397,0.0004156,9]
[394403588,1763533840539,-320.9889949,0.00041575,30]
[394403590,1763533840549,-215.46591517,0.00041599,120]
[394403592,1763533840559,-600.0,0.000416,15]
[394403594,1763533840568,-211.13759935,0.00041602,2]
[394403596,1763533840577,-161.345344,0.00041608,120]
[394403599,1763533840588,-151.0,0.00041608,120]
[394403601,1763533840597,-151.0,0.00041608,60]
[394403602,1763533840606,-152.595431,0.00041608,7]
[394403605,1763533840616,-1600.0,0.0004162,2]
[394403606,1763533840625,-822.0,0.0004162,2]
[394403609,1763533840635,-794.0,0.0004162,2]
[394403610,1763533840644,-1276.0,0.0004162,2]
[394403613,1763533840653,-907.0,0.0004162,2]
[394403615,1763533840662,-1191.0,0.0004162,2]
[394403617,1763533840671,-3433.0,0.0004162,2]
[394403619,1763533840680,-705.0,0.0004162,2]
[394403621,1763533840689,-575.0,0.0004162,2]
[394403623,1763533840702,-151.0,0.0004162,120]
[394403625,1763533840719,-159.652237,0.0004162,120]
[394403627,1763533840727,-151.0,0.0004162,120]
[394403629,1763533840736,-153.918792,0.0004162,120]
[394403631,1763533840745,-151.0,0.0004162,120]
[394403633,1763533840753,-200.307451,0.0004162,120]
[394403635,1763533840762,-1036.0,0.00041626,2]
[394403637,1763533840771,-270.66243895,0.00041627,60]
[394403638,1763533840780,-151.0,0.00041635,15]
[394403640,1763533840789,-155.177214,0.00041635,120]
[394403642,1763533840798,-154.004835,0.00041635,120]
[394403644,1763533840807,-500.0,0.00041635,2]
[394403646,1763533840816,-4698.8695,0.00041635,30]
[394403648,1763533840825,-2000.0,0.00041636,3]
[394403650,1763533840836,-3445.29,0.00041643,2]
[394403652,1763533840845,-300.0,0.00041643,2]
[394403654,1763533840854,-285.44,0.00041658,14]
[394403656,1763533840863,-2200.51128326,0.0004166,120]
[394403658,1763533840873,-292.70268575,0.00041664,2]
[394403660,1763533840881,-300.0,0.00041678,2]
[394403662,1763533840890,-2455.87396,0.0004168,10]
[394403664,1763533840899,-174.7365808,0.000417,120]
[394403666,1763533840908,-188.58154472,0.000417,120]
[394403668,1763533840916,-199.74447139,0.000417,120]
[394403670,1763533840926,-9825.1047846,0.000417,7]
[394403672,1763533840936,-600.0,0.000417,15]
[394403674,1763533840945,-300.0,0.00041708,2]
[394403676,1763533840953,-198.54828745,0.00041713,14]
[394403678,1763533840963,-7858.0,0.00041721,7]
[394403680,1763533840972,-500.0,0.00041727,120]
[394403682,1763533840981,-500.0,0.00041727,7]
[394403684,1763533840990,-517.44,0.00041727,2]
[394403686,1763533840999,-500.0,0.00041727,30]
[394403688,1763533841008,-500.0,0.00041727,120]
[394403690,1763533841017,-515.01217463,0.00041727,120]
[394403692,1763533841025,-1000.0,0.00041728,120]
[394403694,1763533841034,-10000.0,0.00041728,2]
[394403696,1763533841043,-164.21329689,0.00041728,16]
[394403698,1763533841053,-9822.12866182,0.00041728,15]
[394403700,1763533841062,-6512.28378475,0.00041728,15]
[394403702,1763533841071,-317.11035559,0.00041728,2]
[394403704,1763533841080,-307.20550531,0.00041728,28]
[394403706,1763533841090,-849.27622275,0.00041728,120]
[394403708,1763533841099,-169.01403616,0.00041728,2]
[394403711,1763533841108,-169.01403613,0.00041731,2]
[394403724,1763533841220,-169.01403613,0.00041735,2]
[394403727,1763533841244,-317.11035559,0.00041737,2]
[394403729,1763533841253,-169.01403613,0.00041738,2]
[394403731,1763533841263,-169.01403613,0.00041742,2]
[394403733,1763533841272,-163.21651053,0.00041745,4]
[394403735,1763533841281,-208.52167,0.00041745,30]
[394403737,1763533841290,-317.11035559,0.00041745,2]
[394403739,1763533841300,-169.01403613,0.00041745,2]
[394403741,1763533841309,-700.09,0.00041779,30]
[394403743,1763533841318,-500.0,0.00041781,2]
[394403745,1763533841328,-300.0,0.00041782,2]
[394403747,1763533841338,-500.0,0.00041785,2]
[394403749,1763533841346,-500.0,0.00041788,2]
[394403750,1763533841355,-500.0,0.00041788,2]
[394403752,1763533841364,-500.0,0.00041788,2]
[394403754,1763533841373,-7093.5712138,0.00041789,2]
[394403756,1763533841384,-110872.4838589,0.00041789,2]
[394403758,1763533841393,-18824.0468849,0.00041789,2]
[394403760,1763533841402,-457247.8128476,0.00041789,2]
[394403762,1763533841411,-43697.1281298,0.00041789,2]
[394403764,1763533841421,-151.0,0.00041789,120]
[394403766,1763533841431,-151.0,0.00041789,120]
[394403768,1763533841440,-154.897335,0.00041789,120]
[394403770,1763533841449,-151.0,0.00041789,120]
[394403772,1763533841459,-151.0,0.00041789,120]
[394403774,1763533841469,-151.0,0.00041789,120]
[394403776,1763533841478,-151.0,0.00041789,120]
[394403778,1763533841488,-151.0,0.00041789,120]
[394403780,1763533841498,-151.0,0.00041789,120]
[394403782,1763533841511,-151.0,0.00041789,120]
[394403784,1763533841521,-151.0,0.00041789,120]
[394403786,1763533841530,-151.0,0.00041789,120]
[394403788,1763533841540,-151.0,0.00041789,120]
[394403790,1763533841552,-151.0,0.00041789,120]
[394403792,1763533841561,-160.36581,0.00041789,120]
[394403794,1763533841571,-151.0,0.00041789,14]
[394403796,1763533841582,-151.0,0.00041789,120]
[394403798,1763533841593,-157.31533,0.00041789,120]
[394403800,1763533841602,-191.681252,0.00041789,120]
[394403802,1763533841612,-167.713259,0.00041789,120]
[394403804,1763533841623,-6464.08029,0.00041789,2]
[394403806,1763533841639,-151.0,0.00041789,120]
[394403808,1763533841649,-151.0,0.00041789,120]
[394403810,1763533841659,-151.0,0.00041789,120]
[394403812,1763533841669,-151.0,0.00041789,120]
[394403814,1763533841678,-151.0,0.00041789,120]
[394403816,1763533841687,-151.0,0.00041789,120]
[394403818,1763533841697,-151.0,0.00041789,120]
[394403820,1763533841706,-151.0,0.00041789,120]
[394403822,1763533841716,-151.0,0.00041789,120]
[394403824,1763533841727,-151.0,0.00041789,120]
[394403826,1763533841737,-151.0,0.00041789,120]
[394403828,1763533841746,-151.0,0.00041789,120]
[394403830,1763533841757,-151.0,0.00041789,120]
[394403832,1763533841766,-151.0,0.00041789,120]
[394403834,1763533841775,-263.285936,0.00041789,120]
[394403836,1763533841784,-151.0,0.00041789,120]
[394403838,1763533841794,-151.0,0.00041789,120]